fUSD/lending_fUSD_20240508
["ID","MTS","AMOUNT","RATE_DAILY","PERIOD"]
[326636679,1715176245526,-2100.0,0.000127,4]
[326636681,1715176245535,-499.99,0.00012729,2]
[326636683,1715176245544,-1514.1080746,0.0001273,2]
[326636686,1715176245555,-8840.25006212,0.0001273,2]
[326636688,1715176245566,-1292.65159871,0.0001273,2]
[326636690,1715176245576,-204.84,0.00012762,2]
[326636692,1715176245585,-11410.21268691,0.000128,2]
[326636694,1715176245602,-256.269,0.000128,2]
[326636695,1715176245614,-5876.65791309,0.000128,2]
[326636696,1715176245624,-2800.0,0.000128,4]
[326636697,1715176245633,-1495.27,0.000128,4]
[326636698,1715176245643,-3500.0,0.000129,4]
[326636699,1715176245781,-182.33901007,0.000129,2]
[326636700,1715176245791,-181.7066765,0.000129,2]
[326636701,1715176245800,-205.66951884,0.000129,2]
[326636702,1715176245810,-200.0,0.0001293,2]
[326636703,1715176245819,-151.29,0.0001299,2]
[326636704,1715176245828,-151.29,0.0001299,2]
[326636705,1715176245837,-151.29,0.0001299,2]
[326636706,1715176245846,-151.29,0.0001299,2]
[326636707,1715176245858,-151.29,0.0001299,2]
[326636708,1715176245869,-151.29,0.0001299,2]
[326636709,1715176245878,-151.29,0.0001299,2]
[326636710,1715176245887,-151.29,0.0001299,2]
[326636711,1715176245896,-151.29,0.0001299,2]
[326636712,1715176245905,-151.29,0.0001299,2]
[326636713,1715176245914,-235.55959569,0.00012998,2]
[326636714,1715176245923,-156.92700433,0.00012998,2]
[326636715,1715176245932,-193.02952027,0.00012998,2]
[326636716,1715176245941,-155.0,0.00012998,2]
[326636717,1715176245950,-197.0776875,0.00012998,2]
[326636718,1715176245959,-1830.35486963,0.00012998,2]
[326636719,1715176245967,-368.23701486,0.00012998,2]
[326636720,1715176245976,-539.12298364,0.00012999,2]
[326636721,1715176245985,-363.20906257,0.00012999,2]
[326636722,1715176245996,-662.34,0.00012999,2]
[326636723,1715176246007,-25305.11959331,0.00013,2]
[326636724,1715176246026,-2307.44308,0.00013,2]
[326636725,1715176246045,-480.55860352,0.00013,2]
[326636726,1715176246065,-900.0,0.00013,2]
[326636727,1715176246084,-305.0,0.00013,2]
[326636728,1715176246105,-599.93483525,0.00013,2]
[326636751,1715176248298,-1580.97117374,0.00012081,2]
[326636758,1715176248312,-505.82469145,0.00012081,2]
[326636760,1715176248327,-809.68945,0.00012081,2]
[326636764,1715176248339,-383.74231099,0.00012081,2]
[326636769,1715176248361,-157.42,0.0001299,2]
[326636772,1715176248377,-78.83768901,0.0001299,2]
[326636776,1715176248401,-78.58231099,0.0001299,2]
[326636778,1715176248421,-157.42,0.0001299,2]
[326636780,1715176248443,-125.31768901,0.00013,2]
[326636782,1715176248460,-432.917,0.00013,2]
[326636785,1715176248472,-5601.86616176,0.00013,2]
[326636789,1715176248484,-808.59979646,0.00013,2]
[326636792,1715176248495,-1242.05,0.00013,2]
[326636795,1715176248507,-127297.29530717,0.00013,2]
[326636798,1715176248518,-31577.00041486,0.00013,2]
[326636801,1715176248530,-1240.0,0.00013,2]
[326636804,1715176248543,-65952.08794166,0.00013,2]
[326636806,1715176248557,-12151.1001511,0.00013,2]
[326636817,1715176248670,-89453.72375473,0.00013,2]
[326636818,1715176248682,-18266.45882654,0.00013,2]
[326636819,1715176248693,-25574.52361261,0.00013,2]
[326636820,1715176248705,-3185.59392,0.00013,2]
[326636821,1715176248717,-929263.51903503,0.00013,2]
[326636822,1715176248728,-1027704.55799199,0.00013,2]
[326636823,1715176248740,-272.97766749,0.00013,2]
[326636824,1715176248751,-310.18,0.00013,2]
[326636825,1715176248762,-1018.89942128,0.00013,2]
[326636826,1715176248774,-6147.3239805,0.00013,2]
[326636827,1715176248785,-934.38,0.00013,2]
[326636828,1715176248796,-310.0,0.00013,2]
[326636829,1715176248809,-6204.96,0.00013,2]
[326636830,1715176248842,-3626.43775847,0.00013,2]
[326636831,1715176248856,-16343.76212001,0.00013,2]
[326636832,1715176248867,-3101.95,0.00013,2]
[326636833,1715176248878,-620.62,0.00013,2]
[326636834,1715176248889,-547.624316,0.00013,2]
[326636835,1715176248902,-392.4809798,0.00013,2]
[326636836,1715176248913,-332.59159891,0.00013,2]
[326636837,1715176248924,-1997.21990635,0.00013,2]
[326636838,1715176248936,-391.68516296,0.00013,2]
[326636839,1715176251236,-7160.06582164,0.00013,2]
[326636861,1715177432784,-155.0,0.00010806,2]
[326636864,1715177432794,-1212.7569798,0.00010807,2]
[326636867,1715177432803,-220.5413736,0.00010808,2]
[326636869,1715177432812,-685.3229922,0.00010809,2]
[326636870,1715177432824,-155.0,0.00010809,2]
[326636871,1715177432833,-2096.9084044,0.0001081,2]
[326636872,1715177432852,-7544.62544392,0.0001081,2]
[326636873,1715177432865,-221.61220442,0.0001081,2]
[326636874,1715177432876,-2576.83533335,0.00010833,2]
[326636875,1715177432890,-226.65825705,0.00010833,2]
[326636876,1715177432900,-405.7177,0.00010856,2]
[326636877,1715177432909,-1000.0,0.00010956,2]
[326636878,1715177432919,-16781.47978114,0.00010957,2]
[326636880,1715177435779,-1899.62694235,0.00010957,2]
[326636882,1715177435791,-2477.80855264,0.00010957,2]
[326636929,1715177441802,-296.44034386,0.00010957,2]
[326636930,1715177441814,-4020.09366311,0.00010957,2]
[326636931,1715177441829,-10548.46611302,0.00010957,2]
[326636932,1715177441838,-810.22,0.00010959,2]
[326636933,1715177441849,-616.87,0.00012273,2]
[326636934,1715177441859,-1295.14825201,0.00012349,2]
[326636935,1715177441869,-3500.94133622,0.00012756,2]
[326636936,1715177441878,-1561.86172371,0.00012832,2]
[326636937,1715177441892,-168.12,0.00012853,2]
[326636938,1715177441903,-5744.56916942,0.000129,2]
[326636939,1715177441916,-1791.51625807,0.000129,2]
[326636940,1715177441926,-86.24185243,0.000129,2]
[326636941,1715177441938,-401.69534757,0.000129,2]
[326636942,1715177441948,-494.05881644,0.000129,2]
[326636943,1715177441958,-1000.0,0.000129,2]
[326636944,1715177441968,-2132.9774,0.000129,2]
[326636945,1715177441977,-35161.0352,0.000129,2]
[326636946,1715177441989,-182.33901007,0.000129,2]
[326636947,1715177442000,-10184.7032,0.000129,2]
[326636948,1715177442010,-1861.91,0.00012915,3]
[326636949,1715177442020,-250.83906553,0.0001299,2]
[326636950,1715177442029,-151.29,0.0001299,2]
[326636951,1715177442039,-151.29,0.0001299,2]
[326636952,1715177442049,-179.7460414,0.00012998,2]
[326636953,1715177442060,-155.23077666,0.00012998,2]
[326636954,1715177442070,-275.56606053,0.00012998,2]
[326636955,1715177442083,-155.0,0.00012998,2]
[326636956,1715177442092,-156.60468047,0.00012998,2]
[326636957,1715177442102,-194.47654533,0.00012998,2]
[326636958,1715177442111,-289.00893197,0.00012998,2]
[326636959,1715177442121,-155.93762568,0.00012998,2]
[326636960,1715177442131,-209.1400429,0.00012998,2]
[326636961,1715177442141,-155.38655138,0.00012998,2]
[326636962,1715177442151,-155.54628427,0.00012998,2]
[326636963,1715177442160,-155.19087031,0.00012998,2]
[326636964,1715177442170,-179.51405938,0.00012998,2]
[326636965,1715177442180,-292.02311045,0.00012998,2]
[326636966,1715177442189,-162.68520801,0.00012998,2]
[326636967,1715177442199,-155.1650423,0.00012998,2]
[326636968,1715177442209,-155.35175922,0.00012998,2]
[326636969,1715177442219,-155.25306156,0.00012998,2]
[326636970,1715177442229,-309.54898546,0.00012998,2]
[326636971,1715177442239,-162.07402568,0.00012998,2]
[326636972,1715177442248,-6232.26258,0.00012998,2]
[326636973,1715177442258,-236.89456322,0.00012999,2]
[326636974,1715177442268,-174.84052728,0.00012999,2]
[326636975,1715177442278,-221.57928681,0.00012999,2]
[326636976,1715177442288,-613.40550781,0.00012999,2]
[326636977,1715177442297,-370.54929492,0.00012999,2]
[326636978,1715177442307,-251.74141407,0.00012999,2]
[326636979,1715177442317,-845.25607623,0.00012999,2]
[326636980,1715177442327,-1592849.43571449,0.00013,2]
[326636981,1715177442337,-390446.06464855,0.00013,2]
[326636982,1715177442347,-24284.97625211,0.00013,2]
[326636983,1715177442356,-156.81,0.00013009,2]
[326636984,1715177442366,-156.81,0.00013051,2]
[326636985,1715177442375,-2735.92,0.00013077,2]
[326636986,1715177442385,-156.81,0.00013094,2]
[326636987,1715177442394,-156.81,0.00013136,2]
[326636988,1715177442404,-156.81,0.00013178,2]
[326636989,1715177442414,-156.81,0.00013221,2]
[326636990,1715177442424,-156.81,0.00013263,2]
[326636991,1715177442435,-156.81,0.00013305,2]
[326636992,1715177442445,-156.81,0.00013348,2]
[326636993,1715177442454,-156.81,0.0001339,2]
[326636994,1715177442464,-1500.0,0.00013415,2]
[326636995,1715177442474,-150.16,0.00013425,2]
[326636996,1715177442484,-156.81,0.00013432,2]
[326636997,1715177442494,-156.81,0.00013475,2]
[326636998,1715177442503,-150.69,0.0001351,2]
[326636999,1715177442513,-156.81,0.00013517,2]
[326637000,1715177442523,-156.81,0.0001356,2]
[326637001,1715177442532,-156.81,0.00013602,2]
[326637002,1715177442541,-156.81,0.00013644,2]
[326637003,1715177442551,-156.81,0.00013687,2]
[326637004,1715177442560,-616.87,0.00013807,2]
[326637005,1715177442570,-7536.08542749,0.00014264,2]
[326637006,1715177442582,-176.84,0.00014475,2]
[326637007,1715177442592,-171.28,0.00015279,2]
[326637008,1715177442601,-616.87,0.00015341,2]
[326637009,1715177442611,-7536.08542749,0.00015627,2]
[326637010,1715177442621,-151.8,0.00016228,2]
[326637011,1715177442636,-704.0,0.000166,2]
[326637012,1715177442645,-494.05881643,0.00016645,2]
[326637013,1715177442654,-2456.0,0.000168,2]
[326637014,1715177442664,-616.87,0.00016875,2]
[326637015,1715177442675,-7536.08542749,0.00016991,2]
[326637016,1715177442684,-156.09725218,0.00017405,2]
[326637017,1715177442694,-506.02053729,0.0001788,2]
[326637018,1715177442703,-506.02053729,0.000179,2]
[326637019,1715177442714,-750.0,0.00018,3]
[326637020,1715177442724,-7536.08542749,0.00018355,2]
[326637021,1715177442733,-616.87,0.00018409,2]
[326637022,1715177442743,-5000.0,0.00019,2]
[326637023,1715177442752,-23393.91175633,0.00019,5]
[326637024,1715177442761,-89729.0,0.00019,2]
[326637025,1715177442770,-1000.0,0.00019176,2]
[326637026,1715177442779,-153.91,0.00019178,2]
[326637027,1715177442788,-158.72,0.00019178,2]
[326637028,1715177442798,-215.65,0.00019178,2]
[326637029,1715177442807,-250.09,0.000192,2]
[326637030,1715177442817,-506.02053729,0.00019567,2]
[326637031,1715177442827,-17701.0,0.000197,3]
[326637032,1715177442836,-7536.08542749,0.00019718,2]
[326637033,1715177442845,-155.0,0.0002,2]
[326637034,1715177442854,-800.0,0.0002,3]
[326637035,1715177442864,-172.33124232,0.0002,2]
[326637036,1715177442873,-150.69,0.00020265,2]
[326637037,1715177442883,-494.05881643,0.00020391,2]
[326637038,1715177442892,-17701.0,0.000204,5]
[326637039,1715177442901,-366.80411132,0.00021,2]
[326637040,1715177442911,-7536.08542749,0.00021082,2]
[326637041,1715177442919,-506.02053729,0.00021233,2]
[326637042,1715177442929,-5277.98,0.0002137,2]
[326637043,1715177442939,-264.82,0.00021589,15]
[326637044,1715177442948,-250.0,0.00021918,2]
[326637045,1715177442958,-250.0,0.00021918,2]
[326637046,1715177442967,-2000.0,0.00021918,3]
[326637047,1715177442977,-546.4241888,0.00022,2]
[326637048,1715177442986,-850.0,0.00022,3]
[326637049,1715177442995,-786.0242669,0.00022,2]
[326637050,1715177443005,-1517.27890491,0.00022,2]
[326637051,1715177443014,-7536.08542749,0.00022445,2]
[326637052,1715177443023,-506.02053729,0.000229,2]
[326637053,1715177443032,-250.09,0.000231,2]
[326637054,1715177443042,-7536.08542749,0.00023809,2]
[326637055,1715177443051,-151.29,0.0002399,2]
[326637056,1715177443060,-1072.44064238,0.00024,2]
[326637057,1715177443071,-900.0,0.00024,3]
[326637058,1715177443082,-67748.33846362,0.00024,2]
[326637059,1715177443091,-236.61278237,0.00024,2]
[326637060,1715177443100,-236.61278237,0.00024,2]
[326637061,1715177443110,-236.61278237,0.00024,2]
[326637062,1715177443120,-236.61278237,0.00024,2]
[326637063,1715177443129,-236.61278237,0.00024,2]
[326637064,1715177443139,-236.61278237,0.00024,2]
[326637065,1715177443149,-236.61278237,0.00024,2]
[326637066,1715177443159,-236.61278237,0.00024,2]
[326637067,1715177443168,-236.61278237,0.00024,2]
[326637068,1715177443178,-236.61278237,0.00024,2]
[326637069,1715177443188,-494.05881643,0.00024136,2]
[326637070,1715177443197,-180.0,0.0002423,2]
[326637071,1715177443207,-200.0,0.00024501,2]
[326637072,1715177443216,-506.02053729,0.00024567,2]
[326637073,1715177443226,-9141.6134401,0.0002499,2]
[326637074,1715177443235,-2219.11364841,0.00025,2]
[326637075,1715177443245,-471.76227117,0.00025,2]
[326637076,1715177443255,-12636.75901314,0.00025,2]
[326637077,1715177443264,-202.0,0.0002504,2]
[326637078,1715177443274,-7536.08542749,0.00025173,2]
[326637079,1715177443284,-154.54111002,0.00025322,2]
[326637080,1715177443293,-264.82,0.00025325,15]
[326637081,1715177443303,-300.0,0.00025507,2]
[326637082,1715177443313,-1150.0,0.0002569,2]
[326637083,1715177443322,-202.0,0.000257,2]
[326637084,1715177443334,-153.91,0.00025723,2]
[326637085,1715177443343,-988.0,0.00026027,2]
[326637086,1715177443352,-506.02053729,0.00026233,2]
[326637087,1715177443361,-201.0,0.0002636,2]
[326637088,1715177443371,-202.0,0.0002636,2]
[326637089,1715177443380,-7536.08542749,0.00026536,2]
[326637090,1715177443390,-9728.07775763,0.00026543,2]
[326637091,1715177443399,-7492.0,0.00026643,2]
[326637092,1715177443408,-150.0,0.00026657,2]
[326637093,1715177443419,-150.0,0.0002672,2]
[326637094,1715177443429,-150.0,0.00026736,2]
[326637095,1715177443438,-688.83236886,0.0002692,2]
[326637096,1715177443448,-150.0,0.00026921,2]
[326637097,1715177443458,-151.50478802,0.00026944,2]
[326637098,1715177443467,-1741.42627628,0.00027,2]
[326637099,1715177443479,-201.0,0.0002702,2]
[326637100,1715177443488,-202.0,0.0002702,2]
[326637101,1715177443498,-500.0,0.00027177,2]
[326637102,1715177443507,-500.0,0.00027177,2]
[326637103,1715177443517,-200.0,0.00027178,2]
[326637104,1715177443527,-1000.0,0.00027178,2]
[326637105,1715177443540,-500.0,0.00027178,2]
[326637106,1715177443550,-500.0,0.00027178,2]
[326637107,1715177443560,-200.0,0.00027178,2]
[326637108,1715177443571,-9728.07775761,0.00027222,2]
[326637109,1715177443583,-5170.03770924,0.00027295,2]
[326637110,1715177443592,-5477.74075265,0.00027296,2]
[326637111,1715177443602,-10000.0,0.00027297,2]
[326637112,1715177443612,-150.0,0.00027318,2]
[326637113,1715177443622,-150.0,0.00027324,2]
[326637114,1715177443636,-150.0,0.00027366,2]
[326637115,1715177443646,-1177.25754002,0.00027396,2]
[326637116,1715177443656,-171.42471041,0.00027396,2]
[326637118,1715177443666,-3557.44847318,0.00027396,2]
[326637119,1715177443675,-2215.11343661,0.00027397,2]
[326637120,1715177443684,-335.67037145,0.00027397,7]
[326637121,1715177443694,-155.0,0.00027397,2]
[326637122,1715177443704,-500.0,0.00027397,2]
[326637123,1715177443715,-1000.0,0.00027397,2]
[326637124,1715177443724,-550.17467851,0.00027397,2]
[326637125,1715177443734,-155.0,0.00027397,2]
[326637126,1715177443743,-459.94,0.00027397,2]
[326637127,1715177443752,-155.49081521,0.00027397,2]
[326637128,1715177443762,-1124.5,0.00027397,2]
[326637129,1715177443771,-236.06,0.00027397,2]
[326637130,1715177443780,-301.90641716,0.00027397,2]
[326637131,1715177443789,-500.0,0.00027397,2]
[326637132,1715177443798,-435.53508768,0.00027397,2]
[326637133,1715177443807,-506.04204015,0.00027397,2]
[326637134,1715177443816,-508.93814787,0.00027397,2]
[326637135,1715177443827,-500.0,0.00027397,2]
[326637136,1715177443836,-500.0,0.00027397,2]
[326637137,1715177443845,-503.53765084,0.00027397,2]
[326637138,1715177443854,-300.0,0.00027397,2]
[326637139,1715177443863,-1782.18,0.00027397,2]
[326637140,1715177443872,-500.0,0.00027397,2]
[326637141,1715177443881,-500.0,0.00027397,2]
[326637142,1715177443890,-525.89136949,0.00027397,2]
[326637143,1715177443899,-500.0,0.00027397,2]
[326637144,1715177443908,-500.0,0.00027397,2]
[326637145,1715177443917,-500.0,0.00027397,2]
[326637146,1715177443925,-573.95,0.00027397,2]
[326637147,1715177443934,-500.0,0.00027397,2]
[326637148,1715177443943,-1761.24,0.00027397,2]
[326637149,1715177443952,-241.11,0.00027397,2]
[326637150,1715177443961,-500.0,0.00027397,2]
[326637151,1715177443969,-500.0,0.00027397,2]
[326637152,1715177443978,-273.30124995,0.00027397,2]
[326637153,1715177443987,-500.0,0.00027397,2]
[326637154,1715177443996,-500.0,0.00027397,2]
[326637155,1715177444005,-500.0,0.00027397,2]
[326637156,1715177444015,-500.0,0.00027397,2]
[326637157,1715177444024,-2510.11,0.00027397,2]
[326637158,1715177444033,-1761.24,0.00027397,2]
[326637159,1715177444042,-500.0,0.00027397,2]
[326637160,1715177444051,-1696.25,0.00027397,2]
[326637161,1715177444060,-619.21,0.00027397,2]
[326637162,1715177444069,-212.17,0.00027397,2]
[326637163,1715177444080,-500.0,0.00027397,2]
[326637164,1715177444089,-2279.9,0.00027397,2]
[326637165,1715177444098,-500.0,0.00027397,2]
[326637166,1715177444107,-1483.0,0.00027397,2]
[326637167,1715177444118,-500.0,0.00027397,2]
[326637168,1715177444127,-833.4,0.00027397,2]
[326637169,1715177444137,-500.0,0.00027397,2]
[326637170,1715177444147,-500.0,0.00027397,2]
[326637171,1715177444156,-5000.0,0.00027397,2]
[326637172,1715177444165,-500.0,0.00027397,2]
[326637173,1715177444292,-500.0,0.00027397,2]
[326637174,1715177444302,-500.0,0.00027397,2]
[326637175,1715177444311,-1474.42,0.00027397,2]
[326637176,1715177444321,-411.1,0.00027397,2]
[326637177,1715177444333,-1762.52,0.00027397,2]
[326637178,1715177444342,-500.0,0.00027397,2]
[326637179,1715177444352,-272.76,0.00027397,2]
[326637180,1715177444362,-864.3,0.00027397,2]
[326637181,1715177444372,-500.0,0.00027397,2]
[326637182,1715177444382,-1693.09,0.00027397,2]
[326637183,1715177444391,-248.34,0.00027397,2]
[326637184,1715177444401,-500.0,0.00027397,2]
[326637185,1715177444411,-500.0,0.00027397,2]
[326637186,1715177444424,-500.0,0.00027397,2]
[326637187,1715177444434,-3488.99,0.00027397,2]
[326637188,1715177444444,-396.48,0.00027397,2]
[326637189,1715177444454,-500.0,0.00027397,2]
[326637190,1715177444464,-250.76,0.00027397,2]
[326637191,1715177444474,-1531.27,0.00027397,2]
[326637192,1715177444486,-500.0,0.00027397,2]
[326637193,1715177444496,-335.13,0.00027397,2]
[326637194,1715177444506,-1986.82,0.00027397,2]
[326637195,1715177444517,-435.82,0.00027397,2]
[326637196,1715177444526,-1621.09,0.00027397,2]
[326637197,1715177444536,-500.0,0.00027397,2]
[326637198,1715177444546,-321.07,0.00027397,2]
[326637199,1715177444556,-2016.82684338,0.00027397,2]
[326637200,1715177444565,-500.0,0.00027397,2]
[326637201,1715177444575,-1512.54,0.00027397,2]
[326637202,1715177444588,-500.0,0.00027397,2]
[326637203,1715177444598,-273.94,0.00027397,2]
[326637204,1715177444607,-166.76,0.00027397,2]
[326637205,1715177444615,-500.0,0.00027397,2]
[326637206,1715177444626,-500.0,0.00027397,2]
[326637207,1715177444635,-500.0,0.00027397,2]
[326637208,1715177444643,-323.7,0.00027397,2]
[326637209,1715177444652,-500.0,0.00027397,2]
[326637210,1715177444665,-399.56,0.00027397,2]
[326637211,1715177444674,-500.0,0.00027397,2]
[326637212,1715177444683,-520.68,0.00027397,2]
[326637213,1715177444692,-150.0,0.00027397,2]
[326637214,1715177444707,-500.0,0.00027397,2]
[326637215,1715177444718,-500.0,0.00027397,2]
[326637216,1715177444728,-234.63,0.00027397,2]
[326637217,1715177444738,-1871.41,0.00027397,2]
[326637218,1715177444749,-500.0,0.00027397,2]
[326637219,1715177444759,-306.9,0.00027397,2]
[326637220,1715177444768,-341.68,0.00027397,2]
[326637221,1715177444778,-500.0,0.00027397,2]
[326637222,1715177444788,-330.12,0.00027397,2]
[326637223,1715177444797,-274.62,0.00027397,2]
[326637224,1715177444807,-554.04,0.00027397,2]
[326637225,1715177444816,-500.0,0.00027397,2]
[326637226,1715177444826,-150.88741318,0.00027397,2]
[326637227,1715177444837,-209.94,0.00027397,2]
[326637228,1715177444848,-500.0,0.00027397,2]
[326637229,1715177444857,-500.0,0.00027397,2]
[326637230,1715177444866,-500.0,0.00027397,2]
[326637231,1715177444875,-500.0,0.00027397,2]
[326637232,1715177444884,-500.0,0.00027397,2]
[326637233,1715177444894,-500.0,0.00027397,2]
[326637234,1715177444903,-447.27,0.00027397,2]
[326637235,1715177444912,-1912.94,0.00027397,2]
[326637236,1715177444921,-605.79,0.00027397,2]
[326637237,1715177444931,-1873.96,0.00027397,2]
[326637238,1715177444940,-552.74,0.00027397,2]
[326637239,1715177444949,-500.0,0.00027397,2]
[326637240,1715177444958,-433.33,0.00027397,2]
[326637241,1715177444968,-556.96320049,0.00027397,2]
[326637242,1715177444978,-500.0,0.00027397,2]
[326637243,1715177444987,-500.0,0.00027397,2]
[326637244,1715177444996,-500.0,0.00027397,2]
[326637245,1715177445006,-500.0,0.00027397,2]
[326637246,1715177445015,-500.0,0.00027397,2]
[326637247,1715177445024,-500.0,0.00027397,2]
[326637248,1715177445034,-500.0,0.00027397,2]
[326637249,1715177445043,-500.0,0.00027397,2]
[326637250,1715177445052,-500.0,0.00027397,2]
[326637251,1715177445062,-500.0,0.00027397,2]
[326637252,1715177445071,-500.0,0.00027397,2]
[326637253,1715177445082,-500.0,0.00027397,2]
[326637254,1715177445096,-500.0,0.00027397,2]
[326637255,1715177445105,-500.0,0.00027397,2]
[326637256,1715177445116,-500.0,0.00027397,2]
[326637257,1715177445126,-519.87,0.00027397,2]
[326637258,1715177445135,-500.0,0.00027397,2]
[326637259,1715177445145,-500.0,0.00027397,2]
[326637260,1715177445155,-500.0,0.00027397,2]
[326637261,1715177445164,-3413.65,0.00027397,2]
[326637262,1715177445174,-1510.23,0.00027397,2]
[326637263,1715177445183,-500.0,0.00027397,2]
[326637264,1715177445193,-500.0,0.00027397,2]
[326637265,1715177445202,-500.0,0.00027397,2]
[326637266,1715177445212,-500.0,0.00027397,2]
[326637267,1715177445221,-500.0,0.00027397,2]
[326637268,1715177445231,-935.82,0.00027397,2]
[326637269,1715177445240,-633.27,0.00027397,2]
[326637270,1715177445250,-1190.04,0.00027397,2]
[326637271,1715177445259,-500.0,0.00027397,2]
[326637272,1715177445277,-1588.46,0.00027397,2]
[326637273,1715177445288,-500.0,0.00027397,2]
[326637274,1715177445298,-227.36,0.00027397,2]
[326637275,1715177445308,-500.0,0.00027397,2]
[326637276,1715177445318,-1822.38,0.00027397,2]
[326637277,1715177445330,-500.0,0.00027397,2]
[326637278,1715177445339,-500.0,0.00027397,2]
[326637279,1715177445349,-500.0,0.00027397,2]
[326637280,1715177445358,-500.0,0.00027397,2]
[326637281,1715177445367,-500.0,0.00027397,2]
[326637282,1715177445377,-500.0,0.00027397,2]
[326637283,1715177445387,-3199.02,0.00027397,2]
[326637284,1715177445398,-500.0,0.00027397,2]
[326637285,1715177445407,-500.0,0.00027397,2]
[326637286,1715177445418,-500.0,0.00027397,2]
[326637287,1715177445427,-500.0,0.00027397,2]
[326637288,1715177445437,-500.0,0.00027397,2]
[326637289,1715177445447,-500.0,0.00027397,2]
[326637290,1715177445457,-500.0,0.00027397,2]
[326637291,1715177445466,-500.0,0.00027397,2]
[326637292,1715177445476,-500.0,0.00027397,2]
[326637293,1715177445486,-500.0,0.00027397,2]
[326637294,1715177445495,-500.0,0.00027397,2]
[326637295,1715177445504,-988.0,0.00027397,4]
[326637296,1715177445513,-500.0,0.00027397,2]
[326637297,1715177445523,-624.71,0.00027397,2]
[326637298,1715177445532,-500.0,0.00027397,2]
[326637299,1715177445541,-2668.16,0.00027397,2]
[326637300,1715177445551,-500.0,0.00027397,2]
[326637301,1715177445560,-500.0,0.00027397,2]
[326637302,1715177445569,-500.0,0.00027397,2]
[326637303,1715177445580,-500.0,0.00027397,2]
[326637304,1715177445590,-500.0,0.00027397,2]
[326637305,1715177445599,-500.0,0.00027397,2]
[326637306,1715177445609,-5374.87,0.00027397,2]
[326637307,1715177445618,-500.0,0.00027397,2]
[326637308,1715177445629,-500.0,0.00027397,2]
[326637309,1715177445639,-285.70145708,0.00027397,2]
[326637310,1715177445650,-500.0,0.00027397,2]
[326637311,1715177445662,-500.0,0.00027397,2]
[326637312,1715177445671,-500.0,0.00027397,2]
[326637313,1715177445683,-500.0,0.00027397,2]
[326637314,1715177445692,-545.55380319,0.00027397,2]
[326637315,1715177445701,-500.0,0.00027397,2]
[326637316,1715177445711,-2476.42,0.00027397,2]
[326637317,1715177445720,-561.57,0.00027397,2]
[326637318,1715177445730,-500.0,0.00027397,2]
[326637319,1715177445739,-500.0,0.00027397,2]
[326637320,1715177445748,-500.0,0.00027397,2]
[326637321,1715177445758,-515.45,0.00027397,2]
[326637322,1715177445767,-398.61248997,0.00027397,2]
[326637323,1715177445777,-1554.29,0.00027397,2]
[326637324,1715177445786,-2420.24,0.00027397,2]
[326637325,1715177445795,-500.0,0.00027397,2]
[326637326,1715177445804,-497.1,0.00027397,2]
[326637327,1715177445814,-500.0,0.00027397,2]
[326637328,1715177445823,-500.0,0.00027397,2]
[326637329,1715177445835,-1848.28,0.00027397,2]
[326637330,1715177445844,-500.0,0.00027397,2]
[326637331,1715177445854,-500.0,0.00027397,2]